[Event "Swedish Chess Championship 2019: Sverigemastarklassen"]
[Site "Stiga Sports Arena, Arenatorget 1, Eskilstuna, Sweden"]
[Date "2019.07.11"]
[Round "6.5"]
[White "Blomqvist, Erik"]
[Black "Cramling, Pia"]
[Result "1/2-1/2"]
[TimeControl "90 minutes for 40 moves + 30 minutes for the rest of the game + 30 seconds per move from move one"]
[WhiteTitle "GM"]
[BlackTitle "GM"]
[WhiteFideId "1709437"]
[BlackFideId "1700030"]
[WhiteElo "2492"]
[BlackElo "2479"]

1. e4 {[%clk 01:30:52]} {[%emt 00:00:20]} c5 {[%clk 01:29:51]} {[%emt
00:03:47]} 2. Nf3 {[%clk 01:31:15]} {[%emt 00:00:26]} e6 {[%clk 01:30:15]}
{[%emt 00:00:23]} 3. g3 {[%clk 01:31:20]} {[%emt 00:01:31]} Nc6 {[%clk
01:30:23]} {[%emt 00:01:28]} 4. Bg2 {[%clk 01:31:34]} {[%emt 00:01:45]} Nf6
{[%clk 01:29:01]} 5. Qe2 {[%clk 01:31:20]} e5 {[%clk 01:28:44]} 6. O-O {[%clk
01:31:34]} Be7 {[%clk 01:28:48]} 7. d3 {[%clk 01:31:47]} O-O {[%clk 01:28:01]}
8. Na3 {[%clk 01:31:33]} {[%emt 00:00:03]} d6 {[%clk 01:14:31]} {[%emt
00:13:09]} 9. Nc4 {[%clk 01:28:41]} {[%emt 00:03:22]} Re8 {[%clk 01:08:57]}
{[%emt 00:06:04]} 10. Bg5 {[%clk 01:26:41]} {[%emt 00:02:30]} Ng4 {[%clk
01:07:19]} {[%emt 00:02:08]} 11. Bxe7 {[%clk 01:19:40]} {[%emt 00:07:32]} Qxe7
{[%clk 01:05:43]} {[%emt 00:02:05]} 12. c3 {[%clk 01:19:45]} {[%emt 00:00:26]}
b5 {[%clk 00:56:58]} {[%emt 00:09:14]} 13. Ne3 {[%clk 01:19:53]} {[%emt
00:00:23]} Nxe3 {[%clk 00:56:21]} {[%emt 00:01:07]} 14. fxe3 {[%clk 01:12:35]}
{[%emt 00:07:47]} Bg4 {[%clk 00:55:24]} {[%emt 00:01:26]} 15. Rf2 {[%clk
01:01:07]} {[%emt 00:12:00]} Rab8 {[%clk 00:53:53]} {[%emt 00:02:00]} 16. Qd2
{[%clk 00:56:56]} {[%emt 00:04:41]} Bxf3 {[%clk 00:53:29]} {[%emt 00:00:54]} 17.
Bxf3 {[%clk 00:56:35]} {[%emt 00:00:51]} Rf8 {[%clk 00:51:43]} {[%emt
00:02:16]} 18. Bd1 {[%clk 00:54:22]} {[%emt 00:02:44]} Qe6 {[%clk 00:46:32]}
{[%emt 00:05:41]} 19. b4 {[%clk 00:48:34]} {[%emt 00:06:18]} a5 {[%clk
00:33:39]} {[%emt 00:13:23]} 20. a3 {[%clk 00:47:36]} {[%emt 00:01:28]} Rfd8
{[%clk 00:27:54]} {[%emt 00:06:14]} 21. Qb2 {[%clk 00:38:15]} {[%emt 00:09:51]}
c4 {[%clk 00:19:46]} {[%emt 00:08:37]} 22. dxc4 {[%clk 00:31:50]} {[%emt
00:06:56]} Qxc4 {[%clk 00:16:42]} {[%emt 00:03:34]} 23. Qb3 {[%clk 00:24:57]}
{[%emt 00:07:24]} Ne7 {[%clk 00:12:06]} {[%emt 00:05:06]} 24. a4 {[%clk
00:19:03]} {[%emt 00:06:24]} axb4 {[%clk 00:09:29]} {[%emt 00:03:06]} 25. axb5
{[%clk 00:17:19]} {[%emt 00:02:14]} d5 {[%clk 00:09:21]} {[%emt 00:00:38]} 26.
exd5 {[%clk 00:14:37]} {[%emt 00:03:13]} Qxc3 {[%clk 00:08:40]} {[%emt
00:01:11]} 27. Qxc3 {[%clk 00:05:19]} {[%emt 00:09:48]} bxc3 {[%clk 00:09:07]}
{[%emt 00:00:03]} 28. Ra7 {[%clk 00:05:45]} {[%emt 00:00:04]} Nc8 {[%clk
00:03:57]} {[%emt 00:05:38]} 29. Raxf7 {[%clk 00:05:13]} {[%emt 00:01:04]} Nd6
{[%clk 00:04:20]} {[%emt 00:00:07]} 30. Rc7 {[%clk 00:04:31]} {[%emt 00:01:12]}
Rxb5 {[%clk 00:04:17]} {[%emt 00:00:32]} 31. Bg4 {[%clk 00:04:17]} {[%emt
00:00:45]} h6 {[%clk 00:02:44]} {[%emt 00:02:02]} 32. Rc2 {[%clk 00:02:08]}
{[%emt 00:02:39]} Kh8 {[%clk 00:03:01]} {[%emt 00:00:13]} 33. Be6 {[%clk
00:01:25]} {[%emt 00:01:13]} Ne4 {[%clk 00:02:36]} {[%emt 00:00:54]} 34. Kg2
{[%clk 00:00:49]} {[%emt 00:01:07]} Rdb8 {[%clk 00:02:23]} {[%emt 00:00:43]} 35.
Bf5 {[%clk 00:00:45]} {[%emt 00:00:34]} Nd6 {[%clk 00:01:38]} {[%emt 00:01:15]}
36. Bg6 {[%clk 00:00:49]} {[%emt 00:00:26]} Rxd5 {[%clk 00:01:45]} {[%emt
00:00:23]} 37. R2xc3 {[%clk 00:00:50]} {[%emt 00:00:30]} e4 {[%clk 00:01:29]}
{[%emt 00:00:46]} 38. h4 {[%clk 00:00:43]} {[%emt 00:00:36]} Rd8 {[%clk
00:01:40]} {[%emt 00:00:19]} 39. Re7 {[%clk 00:00:41]} {[%emt 00:00:32]} Nb5
{[%clk 00:00:43]} {[%emt 00:01:28]} 40. Rc4 {[%clk 00:00:40]} {[%emt 00:00:30]}
Nd6 {[%clk 00:00:39]} {[%emt 00:00:35]} 41. Rcc7 {[%clk 00:27:02]} {[%emt
00:04:07]} Rg8 {[%clk 00:11:35]} {[%emt 00:19:34]} 42. Kh3 {[%clk 00:24:06]}
{[%emt 00:03:26]} Rd3 {[%clk 00:08:42]} {[%emt 00:03:23]} 43. Red7 {[%clk
00:16:38]} {[%emt 00:07:58]} Rd2 {[%clk 00:06:46]} {[%emt 00:02:26]} 44. Re7
{[%clk 00:08:14]} {[%emt 00:08:54]} Rd1 {[%clk 00:04:36]} {[%emt 00:02:40]} 45.
Kg4 {[%clk 00:07:30]} {[%emt 00:01:15]} Rd5 {[%clk 00:02:53]} {[%emt 00:02:13]}
46. Kh3 {[%clk 00:02:28]} {[%emt 00:05:31]} Rd1 {[%clk 00:02:48]} {[%emt
00:00:35]} 47. Re6 {[%clk 00:01:36]} {[%emt 00:01:23]} Rd8 {[%clk 00:02:14]}
{[%emt 00:01:04]} 48. Ree7 {[%clk 00:02:03]} {[%emt 00:00:03]} 1/2-1/2